[Event "15e Open International de Quenza"]
[Site "Quenza"]
[Date "2026.07.05"]
[Round "4.12"]
[White "LOVICHI, Raphael"]
[Black "TOMASI, Albert"]
[Result "0-1"]
[TimeControl "5min+3s"]
[WhiteTitle "-"]
[BlackTitle "FM"]
[WhiteFideId "-"]
[BlackFideId "-"]
[WhiteElo "1824"]
[BlackElo "2235"]

1. e4 {[%clk 00:05:03]} {[%emt 00:00:02]} c5 {[%clk 00:05:03]} {[%emt
00:00:02]} 2. Nf3 {[%emt 00:00:01]} d6 {[%emt 00:00:01]} 3. d4 {[%clk
00:05:03]} {[%emt 00:00:03]} cxd4 {[%clk 00:05:03]} {[%emt 00:00:01]} 4. Nxd4
{[%clk 00:05:03]} {[%emt 00:00:02]} Nf6 {[%clk 00:05:03]} 5. Nc3 {[%clk
00:05:03]} a6 {[%clk 00:05:03]} {[%emt 00:00:02]} 6. Be3 {[%clk 00:05:02]}
{[%emt 00:00:03]} e6 {[%clk 00:05:03]} {[%emt 00:00:02]} 7. Qd2 {[%clk
00:04:55]} {[%emt 00:00:10]} Qc7 {[%clk 00:05:03]} {[%emt 00:00:03]} 8. O-O-O
{[%clk 00:04:55]} {[%emt 00:00:03]} Nbd7 {[%clk 00:05:03]} {[%emt 00:00:03]} 9.
h3 {[%clk 00:04:46]} {[%emt 00:00:11]} b5 {[%clk 00:05:03]} {[%emt 00:00:02]}
10. f3 {[%clk 00:04:44]} {[%emt 00:00:05]} b4 {[%clk 00:04:59]} {[%emt
00:00:07]} 11. Nce2 {[%clk 00:04:44]} d5 {[%clk 00:04:59]} {[%emt 00:00:02]} 12.
exd5 {[%clk 00:04:31]} {[%emt 00:00:16]} Nxd5 {[%clk 00:04:59]} {[%emt
00:00:02]} 13. g4 {[%clk 00:04:04]} {[%emt 00:00:30]} Be7 {[%clk 00:04:58]}
{[%emt 00:00:05]} 14. Bg2 {[%clk 00:04:00]} {[%emt 00:00:06]} Nxe3 {[%clk
00:04:54]} {[%emt 00:00:07]} 15. Qxe3 {[%clk 00:04:00]} {[%emt 00:00:02]} Bb7
{[%clk 00:04:54]} {[%emt 00:00:02]} 16. Rhg1 {[%clk 00:03:54]} {[%emt
00:00:09]} O-O {[%clk 00:04:50]} {[%emt 00:00:07]} 17. f4 {[%clk 00:03:54]}
{[%emt 00:00:03]} Bxg2 {[%clk 00:04:49]} {[%emt 00:00:04]} 18. Rxg2 {[%clk
00:03:54]} Nb6 {[%clk 00:04:49]} {[%emt 00:00:01]} 19. f5 {[%clk 00:03:32]}
{[%emt 00:00:25]} e5 {[%clk 00:04:47]} {[%emt 00:00:05]} 20. Nf3 {[%clk
00:03:29]} {[%emt 00:00:06]} Rac8 {[%clk 00:04:47]} {[%emt 00:00:03]} 21. Ng3
{[%clk 00:03:19]} {[%emt 00:00:13]} Nc4 {[%clk 00:04:47]} {[%emt 00:00:02]} 22.
Qe4 {[%clk 00:03:08]} {[%emt 00:00:14]} Bc5 {[%clk 00:04:47]} {[%emt 00:00:02]}
23. Re2 {[%clk 00:03:05]} {[%emt 00:00:06]} Qa5 {[%clk 00:02:51]} {[%emt
00:01:59]} 24. Kb1 {[%clk 00:02:52]} {[%emt 00:00:16]} Na3+ {[%clk 00:02:46]}
{[%emt 00:00:08]} 25. Ka1 {[%clk 00:02:34]} {[%emt 00:00:22]} Bd4 {[%clk
00:02:24]} {[%emt 00:00:25]} 26. Nxd4 {[%clk 00:02:09]} {[%emt 00:00:27]} exd4
{[%clk 00:02:24]} {[%emt 00:00:01]} 27. f6 {[%clk 00:01:32]} {[%emt 00:00:40]}
Nxc2+ {[%clk 00:02:17]} {[%emt 00:00:10]} 28. Kb1 {[%clk 00:01:16]} {[%emt
00:00:19]} b3 {[%clk 00:02:17]} {[%emt 00:00:01]} 29. a3 {[%clk 00:01:11]}
{[%emt 00:00:08]} d3 {[%clk 00:00:32]} {[%emt 00:01:49]} 30. Rf2 {[%clk
00:00:33]} {[%emt 00:00:40]} Rfe8 {[%clk 00:00:20]} {[%emt 00:00:16]} 31. Qf4
{[%clk 00:00:15]} {[%emt 00:00:20]} g5 {[%clk 00:00:20]} 32. Qf5 {[%clk
00:00:15]} {[%emt 00:00:03]} Qxf5 {[%clk 00:00:20]} {[%emt 00:00:03]} 33. Nxf5
{[%clk 00:00:15]} {[%emt 00:00:01]} Kh8 {[%clk 00:00:10]} {[%emt 00:00:13]} 34.
Ne7 {[%clk 00:00:15]} {[%emt 00:00:02]} Rc4 {[%clk 00:00:05]} {[%emt 00:00:09]}
35. Rfd2 {[%clk 00:00:15]} {[%emt 00:00:02]} Rf4 {[%clk 00:00:05]} {[%emt
00:00:03]} 36. Nd5 {[%clk 00:00:15]} {[%emt 00:00:03]} Rf3 {[%clk 00:00:05]}
{[%emt 00:00:02]} 37. Nc3 {[%clk 00:00:07]} {[%emt 00:00:11]} Re1 {[%clk
00:00:05]} {[%emt 00:00:03]} 38. Rxe1 {[%clk 00:00:07]} {[%emt 00:00:02]} Nxe1
{[%clk 00:00:05]} 39. Nd5 {[%clk 00:00:06]} {[%emt 00:00:04]} h6 {[%clk
00:00:05]} {[%emt 00:00:01]} 40. Nb4 {[%clk 00:00:06]} Nc2 {[%clk 00:00:05]}
{[%emt 00:00:03]} 41. Nxd3 {[%clk 00:00:06]} {[%emt 00:00:02]} Rxh3 {[%clk
00:00:05]} {[%emt 00:00:02]} 42. Nc1 {[%clk 00:00:06]} {[%emt 00:00:02]} Kh7
{[%clk 00:00:05]} {[%emt 00:00:02]} 43. Nxb3 {[%emt 00:00:02]} Nxa3+ {[%clk
00:00:05]} {[%emt 00:00:02]} 44. bxa3 Rxb3+ 45. Ka2 {[%clk 00:00:06]} Rf3
{[%clk 00:00:05]} {[%emt 00:00:01]} 46. Rd6 {[%clk 00:00:06]} {[%emt 00:00:02]}
Kg6 {[%clk 00:00:05]} {[%emt 00:00:03]} 47. Rxa6 {[%clk 00:00:06]} Rf4 {[%clk
00:00:05]} {[%emt 00:00:01]} 48. Rb6 {[%clk 00:00:06]} {[%emt 00:00:04]} Rxg4
{[%clk 00:00:05]} {[%emt 00:00:01]} 49. Rb4 {[%clk 00:00:06]} Rg2+ {[%clk
00:00:05]} {[%emt 00:00:02]} 50. Kb3 {[%clk 00:00:06]} Rf2 {[%clk 00:00:05]} 51.
a4 {[%clk 00:00:06]} {[%emt 00:00:02]} Rxf6 {[%emt 00:00:01]} 52. a5 Rf3+
{[%clk 00:00:05]} {[%emt 00:00:03]} 53. Ka4 {[%clk 00:00:06]} {[%emt 00:00:02]}
Rf1 {[%clk 00:00:05]} 54. Rb3 {[%clk 00:00:06]} {[%emt 00:00:02]} Rf4+ {[%clk
00:00:05]} {[%emt 00:00:01]} 55. Rb4 {[%clk 00:00:06]} {[%emt 00:00:01]} Rf1 56.
Rb3 Ra1+ {[%clk 00:00:05]} {[%emt 00:00:02]} 57. Ra3 {[%clk 00:00:06]} Rb1
{[%clk 00:00:05]} 58. Rb3 {[%clk 00:00:06]} Ra1+ {[%clk 00:00:05]} 59. Ra3
{[%clk 00:00:06]} Rc1 {[%clk 00:00:05]} 60. a6 {[%clk 00:00:06]} {[%emt
00:00:02]} g4 {[%clk 00:00:05]} {[%emt 00:00:03]} 61. Rb3 {[%clk 00:00:06]}
Ra1+ {[%clk 00:00:05]} {[%emt 00:00:02]} 62. Ra3 {[%clk 00:00:06]} Rc1 {[%clk
00:00:05]} 63. Kb5 {[%clk 00:00:06]} {[%emt 00:00:02]} Rc8 {[%clk 00:00:05]}
{[%emt 00:00:02]} 64. Kb6 {[%clk 00:00:06]} {[%emt 00:00:01]} Kg5 {[%clk
00:00:05]} {[%emt 00:00:02]} 65. a7 {[%clk 00:00:06]} {[%emt 00:00:01]} Ra8
{[%clk 00:00:05]} {[%emt 00:00:02]} 66. Kb7 {[%clk 00:00:05]} {[%emt 00:00:04]}
Rxa7+ {[%clk 00:00:05]} 67. Kxa7 {[%clk 00:00:05]} f5 {[%clk 00:00:05]} {[%emt
00:00:02]} 68. Kb6 {[%clk 00:00:05]} {[%emt 00:00:03]} f4 {[%clk 00:00:05]}
{[%emt 00:00:01]} 69. Kc5 {[%clk 00:00:05]} {[%emt 00:00:02]} g3 {[%clk
00:00:05]} {[%emt 00:00:01]} 70. Kd4 {[%clk 00:00:05]} {[%emt 00:00:02]} g2
{[%clk 00:00:05]} {[%emt 00:00:03]} 71. Ra1 {[%clk 00:00:05]} Kg4 {[%emt
00:00:03]} 72. Ke4 {[%clk 00:00:05]} {[%emt 00:00:02]} h5 {[%clk 00:00:05]}
{[%emt 00:00:02]} 73. Rg1 {[%clk 00:00:05]} {[%emt 00:00:01]} f3 {[%clk
00:00:05]} {[%emt 00:00:02]} 74. Rc1 {[%emt 00:00:04]} f2 {[%clk 00:00:05]} 0-1

[Event "15e Open International de Quenza"]
[Site "Quenza"]
[Date "2026.07.05"]
[Round "4.1"]
[White "BRODOWSKI, Piotr"]
[Black "KOELLE, Tobias"]
[Result "0-1"]
[TimeControl "5min+3s"]
[WhiteTitle "IM"]
[BlackTitle "IM"]
[WhiteFideId "-"]
[BlackFideId "-"]
[WhiteElo "2435"]
[BlackElo "2613"]

1. Nf3 {[%clk 00:05:03]} d5 {[%clk 00:05:03]} {[%emt 00:00:01]} 2. g3 {[%clk
00:05:03]} {[%emt 00:00:01]} Nc6 {[%clk 00:05:03]} {[%emt 00:00:01]} 3. d4
{[%clk 00:05:03]} {[%emt 00:00:02]} Bf5 {[%clk 00:05:03]} {[%emt 00:00:01]} 4.
Bg2 {[%clk 00:05:03]} {[%emt 00:00:02]} Nb4 {[%clk 00:05:03]} {[%emt 00:00:01]}
5. Na3 {[%clk 00:05:03]} {[%emt 00:00:01]} e6 {[%clk 00:05:03]} 6. c3 {[%clk
00:05:03]} {[%emt 00:00:02]} Nc6 {[%clk 00:05:03]} 7. O-O {[%clk 00:05:02]}
{[%emt 00:00:04]} Bxa3 {[%clk 00:05:03]} {[%emt 00:00:03]} 8. bxa3 {[%clk
00:05:02]} {[%emt 00:00:01]} Be4 {[%clk 00:05:03]} {[%emt 00:00:01]} 9. a4
{[%clk 00:04:55]} {[%emt 00:00:11]} Nge7 {[%clk 00:04:59]} {[%emt 00:00:07]} 10.
Ba3 {[%clk 00:04:55]} {[%emt 00:00:02]} O-O {[%clk 00:04:59]} {[%emt 00:00:02]}
11. Nd2 {[%clk 00:04:54]} {[%emt 00:00:05]} Bxg2 {[%clk 00:04:59]} {[%emt
00:00:02]} 12. Kxg2 {[%clk 00:04:54]} {[%emt 00:00:01]} Re8 {[%clk 00:04:57]}
{[%emt 00:00:05]} 13. e3 {[%clk 00:04:54]} {[%emt 00:00:01]} Nf5 {[%clk
00:04:57]} {[%emt 00:00:03]} 14. Qf3 {[%clk 00:04:43]} {[%emt 00:00:14]} Nd6
{[%clk 00:04:52]} {[%emt 00:00:08]} 15. Rab1 {[%clk 00:04:29]} {[%emt
00:00:17]} Na5 {[%clk 00:04:52]} {[%emt 00:00:02]} 16. Bxd6 {[%clk 00:04:20]}
{[%emt 00:00:12]} cxd6 {[%clk 00:04:52]} {[%emt 00:00:03]} 17. Qe2 {[%clk
00:02:48]} {[%emt 00:01:35]} Rc8 {[%clk 00:04:52]} {[%emt 00:00:02]} 18. Rfc1
{[%clk 00:02:48]} {[%emt 00:00:01]} Re7 {[%clk 00:04:40]} {[%emt 00:00:15]} 19.
Qb5 {[%clk 00:02:08]} {[%emt 00:00:42]} b6 {[%clk 00:04:32]} {[%emt 00:00:11]}
20. Nb3 {[%clk 00:01:33]} {[%emt 00:00:39]} Nc4 {[%clk 00:04:32]} {[%emt
00:00:01]} 21. Qa6 {[%clk 00:01:32]} {[%emt 00:00:03]} Rec7 {[%clk 00:04:11]}
{[%emt 00:00:24]} 22. h4 {[%clk 00:01:32]} {[%emt 00:00:03]} h6 {[%clk
00:04:05]} {[%emt 00:00:09]} 23. a5 {[%clk 00:01:27]} {[%emt 00:00:09]} b5
{[%clk 00:04:00]} {[%emt 00:00:09]} 24. Na1 {[%clk 00:01:11]} {[%emt 00:00:18]}
Rc6 {[%clk 00:03:51]} {[%emt 00:00:12]} 25. Qxb5 {[%clk 00:00:44]} {[%emt
00:00:30]} Na3 {[%clk 00:03:51]} {[%emt 00:00:01]} 26. Qb7 {[%clk 00:00:31]}
{[%emt 00:00:15]} Nxb1 {[%clk 00:03:49]} {[%emt 00:00:05]} 27. Rxb1 {[%clk
00:00:31]} {[%emt 00:00:01]} Qxa5 {[%clk 00:03:46]} {[%emt 00:00:05]} 28. Nb3
{[%clk 00:00:21]} {[%emt 00:00:13]} Qc7 {[%clk 00:03:46]} {[%emt 00:00:03]} 29.
Qb5 {[%clk 00:00:17]} {[%emt 00:00:07]} Rxc3 {[%clk 00:03:43]} {[%emt
00:00:07]} 30. Na5 {[%clk 00:00:17]} {[%emt 00:00:02]} Rc2 {[%clk 00:03:36]}
{[%emt 00:00:09]} 31. a4 {[%clk 00:00:17]} {[%emt 00:00:03]} Ra2 {[%clk
00:03:32]} {[%emt 00:00:06]} 32. Nb7 {[%clk 00:00:11]} {[%emt 00:00:10]} Qc2
{[%clk 00:03:28]} {[%emt 00:00:06]} 33. Rf1 {[%clk 00:00:11]} Qxa4 {[%clk
00:03:28]} {[%emt 00:00:02]} 34. Qb1 {[%clk 00:00:05]} {[%emt 00:00:10]} Qc2
{[%clk 00:03:20]} {[%emt 00:00:11]} 35. Qb5 {[%clk 00:00:05]} Qc6 {[%clk
00:03:18]} {[%emt 00:00:04]} 36. Qb1 {[%clk 00:00:05]} {[%emt 00:00:01]} Ra6
{[%clk 00:03:18]} {[%emt 00:00:02]} 0-1

[Event "15e Open International de Quenza"]
[Site "Quenza"]
[Date "2026.07.05"]
[Round "4.8"]
[White "PAKLEZA, Zbigniew"]
[Black "THIBOUS, Mathis"]
[Result "1/2-1/2"]
[TimeControl "5min+3s"]
[WhiteTitle "GM"]
[BlackTitle "-"]
[WhiteFideId "-"]
[BlackFideId "-"]
[WhiteElo "2453"]
[BlackElo "2003"]

1. Nf3 {[%emt 01:30:54]} g6 2. d4 {[%clk 00:05:03]} {[%emt 00:00:01]} Bg7
{[%clk 00:05:03]} 3. Bf4 {[%clk 00:05:03]} d6 {[%clk 00:05:03]} 4. e3 {[%clk
00:05:03]} Nd7 {[%clk 00:05:03]} 5. h3 {[%clk 00:05:03]} e5 {[%clk 00:05:03]}
{[%emt 00:00:01]} 6. Bh2 {[%clk 00:05:03]} Nh6 {[%clk 00:05:03]} 7. Be2 {[%clk
00:05:03]} O-O {[%clk 00:05:03]} 8. O-O {[%clk 00:05:03]} f5 {[%clk 00:05:03]}
{[%emt 00:00:03]} 9. c4 {[%clk 00:05:03]} Nf7 {[%clk 00:05:03]} {[%emt
00:00:05]} 10. Nc3 {[%clk 00:05:03]} c6 {[%clk 00:05:03]} {[%emt 00:00:03]} 11.
b4 {[%emt 00:00:03]} Qe7 {[%clk 00:05:03]} 12. Rc1 {[%clk 00:05:01]} {[%emt
00:00:06]} g5 {[%clk 00:05:03]} {[%emt 00:00:01]} 13. Re1 {[%clk 00:04:56]}
{[%emt 00:00:08]} h5 {[%clk 00:05:01]} {[%emt 00:00:05]} 14. c5 {[%clk
00:04:45]} {[%emt 00:00:13]} d5 {[%clk 00:04:59]} {[%emt 00:00:06]} 15. Nxe5
{[%clk 00:04:41]} {[%emt 00:00:07]} Ndxe5 {[%clk 00:04:53]} {[%emt 00:00:08]}
16. dxe5 {[%clk 00:04:41]} {[%emt 00:00:02]} g4 {[%clk 00:04:53]} 17. hxg4
{[%clk 00:03:53]} {[%emt 00:00:51]} hxg4 {[%clk 00:04:51]} {[%emt 00:00:04]} 18.
Bd3 {[%clk 00:03:47]} {[%emt 00:00:09]} Bxe5 {[%clk 00:03:21]} {[%emt
00:01:34]} 19. Bxe5 {[%clk 00:03:44]} {[%emt 00:00:06]} Nxe5 {[%clk 00:03:08]}
{[%emt 00:00:16]} 20. Ne2 {[%clk 00:03:44]} Qg5 {[%clk 00:02:07]} {[%emt
00:01:04]} 21. Nf4 {[%clk 00:02:59]} {[%emt 00:00:48]} Bd7 {[%clk 00:02:05]}
{[%emt 00:00:05]} 22. Kf1 {[%clk 00:02:51]} {[%emt 00:00:11]} Rae8 {[%clk
00:02:02]} {[%emt 00:00:05]} 23. Bb1 {[%clk 00:02:25]} {[%emt 00:00:28]} Qh6
{[%clk 00:02:02]} {[%emt 00:00:04]} 24. Ke2 {[%clk 00:02:05]} {[%emt 00:00:23]}
Nf3 {[%clk 00:01:53]} {[%emt 00:00:11]} 25. Kd3 {[%clk 00:01:20]} {[%emt
00:00:48]} Nxe1+ {[%clk 00:01:53]} {[%emt 00:00:03]} 26. Qxe1 {[%clk 00:01:20]}
Re4 {[%clk 00:01:45]} {[%emt 00:00:11]} 27. Kc3 {[%clk 00:00:53]} {[%emt
00:00:29]} d4+ {[%clk 00:01:15]} {[%emt 00:00:33]} 28. Kb3 {[%clk 00:00:51]}
{[%emt 00:00:05]} dxe3 {[%clk 00:00:22]} {[%emt 00:00:57]} 29. Bxe4 {[%clk
00:00:50]} {[%emt 00:00:04]} exf2 {[%clk 00:00:22]} {[%emt 00:00:02]} 30. Bd5+
{[%clk 00:00:45]} {[%emt 00:00:08]} cxd5 {[%clk 00:00:22]} {[%emt 00:00:03]} 31.
Qxf2 {[%clk 00:00:45]} {[%emt 00:00:01]} Bb5 {[%clk 00:00:20]} {[%emt
00:00:05]} 32. Re1 {[%clk 00:00:31]} {[%emt 00:00:17]} Bc4+ {[%clk 00:00:20]}
{[%emt 00:00:01]} 33. Kc3 {[%clk 00:00:28]} {[%emt 00:00:05]} Qf6+ {[%clk
00:00:20]} {[%emt 00:00:01]} 34. Qd4 {[%clk 00:00:28]} Qa6 {[%clk 00:00:16]}
{[%emt 00:00:07]} 35. Re7 {[%clk 00:00:16]} {[%emt 00:00:15]} Qa3+ {[%clk
00:00:16]} {[%emt 00:00:01]} 36. Kd2 {[%clk 00:00:16]} Qxa2+ {[%clk 00:00:12]}
{[%emt 00:00:07]} 37. Ke3 {[%clk 00:00:16]} {[%emt 00:00:02]} Qb3+ {[%clk
00:00:12]} {[%emt 00:00:02]} 38. Kd2 {[%clk 00:00:07]} {[%emt 00:00:12]} Qxb4+
{[%clk 00:00:12]} {[%emt 00:00:01]} 39. Ke3 {[%clk 00:00:07]} {[%emt 00:00:02]}
Qb3+ {[%clk 00:00:12]} 40. Kd2 {[%clk 00:00:07]} {[%emt 00:00:02]} Qb4+ {[%clk
00:00:12]} 41. Ke3 {[%clk 00:00:07]} {[%emt 00:00:03]} Qb3+ {[%clk 00:00:12]}
42. Kd2 {[%clk 00:00:06]} {[%emt 00:00:03]} Qb4+ {[%clk 00:00:12]} {[%emt
00:00:01]} 43. Ke3 {[%clk 00:00:06]} {[%emt 00:00:03]} Qb3+ {[%clk 00:00:12]}
1/2-1/2

[Event "15e Open International de Quenza"]
[Site "Quenza"]
[Date "2026.07.05"]
[Round "4.9"]
[White "CHARNI, Ilyes"]
[Black "TREGUBOV, Pavel V."]
[Result "0-1"]
[TimeControl "5min+3s"]
[WhiteTitle "-"]
[BlackTitle "GM"]
[WhiteFideId "-"]
[BlackFideId "-"]
[WhiteElo "1876"]
[BlackElo "2391"]

1. e4 {[%clk 00:05:03]} {[%emt 01:28:11]} c5 {[%clk 00:05:03]} {[%emt
00:00:02]} 2. d4 {[%clk 00:05:03]} cxd4 {[%clk 00:05:03]} {[%emt 00:00:03]} 3.
c3 {[%clk 00:05:03]} d3 {[%clk 00:04:49]} {[%emt 00:00:26]} 4. Nf3 {[%clk
00:05:03]} {[%emt 00:00:02]} d6 {[%clk 00:04:49]} {[%emt 00:00:02]} 5. Bxd3
{[%clk 00:05:03]} {[%emt 00:00:02]} g6 {[%clk 00:04:49]} {[%emt 00:00:04]} 6.
O-O {[%clk 00:05:03]} {[%emt 00:00:02]} Bg7 {[%clk 00:04:49]} 7. h3 {[%clk
00:04:52]} {[%emt 00:00:15]} Nc6 {[%clk 00:04:49]} {[%emt 00:00:01]} 8. Nbd2
{[%clk 00:04:50]} {[%emt 00:00:06]} Nf6 {[%clk 00:04:49]} 9. Qe2 {[%clk
00:04:49]} {[%emt 00:00:04]} O-O {[%clk 00:04:48]} {[%emt 00:00:04]} 10. Nc4
{[%clk 00:04:35]} {[%emt 00:00:16]} b5 {[%clk 00:04:40]} {[%emt 00:00:11]} 11.
Ne3 {[%clk 00:04:06]} {[%emt 00:00:31]} a6 {[%clk 00:04:40]} {[%emt 00:00:01]}
12. Nd5 {[%clk 00:03:47]} {[%emt 00:00:22]} Nd7 {[%clk 00:04:21]} {[%emt
00:00:23]} 13. a4 {[%clk 00:03:28]} {[%emt 00:00:22]} bxa4 {[%clk 00:04:06]}
{[%emt 00:00:18]} 14. Rxa4 {[%clk 00:03:05]} {[%emt 00:00:26]} Nc5 {[%clk
00:04:06]} {[%emt 00:00:01]} 15. Ra1 {[%clk 00:02:54]} {[%emt 00:00:13]} e6
{[%clk 00:03:47]} {[%emt 00:00:23]} 16. Ne3 {[%clk 00:02:43]} {[%emt 00:00:13]}
a5 {[%clk 00:03:38]} {[%emt 00:00:13]} 17. Bc2 {[%clk 00:02:41]} {[%emt
00:00:05]} Ba6 {[%clk 00:03:38]} {[%emt 00:00:04]} 18. c4 {[%clk 00:02:37]}
{[%emt 00:00:07]} Nb4 {[%clk 00:03:35]} {[%emt 00:00:05]} 19. Rd1 {[%clk
00:02:08]} {[%emt 00:00:32]} Qb6 {[%clk 00:03:26]} {[%emt 00:00:13]} 20. e5
{[%clk 00:01:25]} {[%emt 00:00:46]} dxe5 {[%clk 00:03:07]} {[%emt 00:00:22]} 21.
Ng4 {[%clk 00:01:16]} {[%emt 00:00:12]} Nxc2 {[%clk 00:03:07]} {[%emt
00:00:03]} 22. Qxc2 {[%clk 00:01:16]} {[%emt 00:00:01]} e4 {[%clk 00:03:07]}
{[%emt 00:00:02]} 23. Ng5 {[%clk 00:00:35]} {[%emt 00:00:44]} Qb3 {[%clk
00:02:43]} {[%emt 00:00:26]} 24. Qxb3 {[%clk 00:00:27]} {[%emt 00:00:11]} Nxb3
{[%clk 00:02:43]} {[%emt 00:00:02]} 25. Ra3 {[%clk 00:00:27]} {[%emt 00:00:02]}
Bxc4 {[%clk 00:02:39]} {[%emt 00:00:07]} 26. Be3 {[%clk 00:00:17]} {[%emt
00:00:14]} h5 {[%clk 00:02:15]} {[%emt 00:00:26]} 27. Nh2 {[%clk 00:00:17]}
{[%emt 00:00:03]} Rfd8 {[%clk 00:02:15]} {[%emt 00:00:02]} 28. Re1 {[%clk
00:00:12]} {[%emt 00:00:08]} Bxb2 {[%clk 00:02:09]} {[%emt 00:00:09]} 29. Nxe4
{[%clk 00:00:12]} {[%emt 00:00:03]} Bxa3 {[%clk 00:02:08]} {[%emt 00:00:03]}
0-1

[ePGN "0.1;DGT LiveChess/2.2.11"]

[Event "15e Open International de Quenza"]
[Site "Quenza"]
[Date "2026.07.05"]
[Round "5.4"]
[White "FRESSINET, Laurent"]
[Black "PAKLEZA, Zbigniew"]
[Result "0-1"]
[TimeControl "5min+3s"]
[WhiteTitle "GM"]
[BlackTitle "GM"]
[WhiteFideId "-"]
[BlackFideId "-"]
[WhiteElo "2565"]
[BlackElo "2453"]

1. d4 {[%clk 00:05:03]} d6 {[%clk 00:05:03]} {[%emt 00:00:02]} 2. e4 {[%clk
00:05:03]} {[%emt 00:00:02]} Nf6 {[%clk 00:05:03]} {[%emt 00:00:01]} 3. Nc3
{[%clk 00:05:03]} {[%emt 00:00:01]} c6 {[%clk 00:05:03]} 4. f4 {[%clk
00:04:57]} {[%emt 00:00:09]} Qb6 {[%clk 00:05:03]} {[%emt 00:00:02]} 5. a3
{[%clk 00:04:45]} {[%emt 00:00:15]} e5 {[%clk 00:05:03]} {[%emt 00:00:02]} 6.
Nf3 {[%clk 00:04:07]} {[%emt 00:00:41]} Nbd7 {[%clk 00:05:03]} {[%emt
00:00:02]} 7. Be2 {[%clk 00:04:00]} {[%emt 00:00:09]} Be7 {[%clk 00:04:58]}
{[%emt 00:00:10]} 8. O-O {[%clk 00:03:54]} {[%emt 00:00:09]} exd4 {[%clk
00:04:31]} {[%emt 00:00:30]} 9. Qxd4 {[%clk 00:03:54]} {[%emt 00:00:02]} d5
{[%clk 00:04:22]} {[%emt 00:00:12]} 10. Qxb6 {[%clk 00:03:49]} {[%emt
00:00:08]} Nxb6 {[%clk 00:04:22]} {[%emt 00:00:02]} 11. e5 {[%clk 00:03:46]}
{[%emt 00:00:05]} Bc5+ {[%clk 00:04:22]} {[%emt 00:00:01]} 12. Kh1 {[%clk
00:03:46]} {[%emt 00:00:01]} Ng4 {[%clk 00:04:22]} {[%emt 00:00:01]} 13. Nd1
{[%clk 00:03:28]} {[%emt 00:00:21]} h5 {[%clk 00:04:21]} {[%emt 00:00:05]} 14.
h3 {[%clk 00:03:09]} {[%emt 00:00:22]} a5 {[%clk 00:04:07]} {[%emt 00:00:16]}
15. Bd2 {[%clk 00:03:07]} {[%emt 00:00:05]} Bf5 {[%clk 00:04:02]} {[%emt
00:00:08]} 16. Bd3 {[%clk 00:02:58]} {[%emt 00:00:12]} Nh6 {[%clk 00:03:37]}
{[%emt 00:00:29]} 17. b4 {[%clk 00:02:58]} {[%emt 00:00:01]} axb4 {[%emt
00:00:10]} 18. Be3 {[%clk 00:02:31]} {[%emt 00:00:28]} Nd7 {[%clk 00:03:09]}
{[%emt 00:00:26]} 19. a4 {[%clk 00:02:24]} {[%emt 00:00:10]} Bxd3 {[%clk
00:03:03]} {[%emt 00:00:09]} 20. cxd3 {[%clk 00:02:24]} Nf5 {[%clk 00:03:03]}
21. Re1 {[%clk 00:02:20]} {[%emt 00:00:07]} Bxe3 {[%clk 00:02:45]} {[%emt
00:00:21]} 22. Nxe3 {[%clk 00:02:20]} {[%emt 00:00:01]} Nxe3 {[%clk 00:02:45]}
{[%emt 00:00:02]} 23. Rxe3 {[%clk 00:02:20]} Nc5 {[%clk 00:02:43]} {[%emt
00:00:04]} 24. d4 {[%clk 00:02:14]} {[%emt 00:00:09]} Rxa4 {[%clk 00:02:30]}
{[%emt 00:00:17]} 25. Rxa4 {[%clk 00:02:09]} {[%emt 00:00:08]} Nxa4 {[%clk
00:02:30]} {[%emt 00:00:01]} 26. Rb3 {[%clk 00:02:09]} Kd7 {[%clk 00:02:24]}
{[%emt 00:00:09]} 27. Rxb4 {[%clk 00:02:09]} {[%emt 00:00:01]} b5 {[%clk
00:02:24]} 28. f5 {[%clk 00:02:07]} {[%emt 00:00:05]} Ra8 {[%clk 00:02:17]}
{[%emt 00:00:10]} 29. Rb3 {[%clk 00:01:57]} {[%emt 00:00:12]} Nb6 {[%clk
00:02:13]} {[%emt 00:00:07]} 30. Ng5 {[%clk 00:01:44]} {[%emt 00:00:16]} Ke7
{[%clk 00:02:05]} {[%emt 00:00:11]} 31. Rf3 {[%clk 00:01:44]} f6 {[%clk
00:01:36]} {[%emt 00:00:33]} 32. Ne6 {[%clk 00:01:42]} {[%emt 00:00:05]} Nc4
{[%clk 00:00:46]} {[%emt 00:00:53]} 33. Nxg7 {[%clk 00:01:29]} {[%emt
00:00:16]} fxe5 {[%clk 00:00:43]} {[%emt 00:00:06]} 34. dxe5 {[%clk 00:01:08]}
{[%emt 00:00:24]} Nxe5 {[%clk 00:00:43]} {[%emt 00:00:01]} 35. Re3 {[%clk
00:01:08]} Kd6 {[%clk 00:00:41]} {[%emt 00:00:05]} 36. f6 {[%clk 00:01:01]}
{[%emt 00:00:10]} d4 {[%clk 00:00:25]} {[%emt 00:00:19]} 37. Re1 {[%clk
00:01:01]} {[%emt 00:00:02]} Kd5 {[%clk 00:00:22]} {[%emt 00:00:06]} 38. Nxh5
{[%clk 00:01:01]} {[%emt 00:00:03]} Nd3 {[%clk 00:00:22]} {[%emt 00:00:02]} 39.
Re7 {[%clk 00:00:48]} {[%emt 00:00:16]} Rf8 {[%clk 00:00:16]} {[%emt 00:00:08]}
40. g4 {[%clk 00:00:43]} {[%emt 00:00:08]} b4 {[%clk 00:00:16]} {[%emt
00:00:03]} 41. g5 {[%clk 00:00:40]} {[%emt 00:00:06]} b3 {[%clk 00:00:16]}
{[%emt 00:00:02]} 42. Rb7 {[%clk 00:00:39]} {[%emt 00:00:04]} Nc5 {[%clk
00:00:16]} {[%emt 00:00:03]} 43. Rb6 {[%clk 00:00:30]} {[%emt 00:00:12]} d3
{[%clk 00:00:16]} {[%emt 00:00:01]} 44. Nf4+ {[%clk 00:00:20]} {[%emt
00:00:12]} Ke4 {[%clk 00:00:11]} {[%emt 00:00:09]} 45. Rb4+ {[%clk 00:00:20]}
{[%emt 00:00:01]} Ke3 {[%clk 00:00:09]} {[%emt 00:00:04]} 46. Ng2+ {[%clk
00:00:14]} {[%emt 00:00:10]} Kd2 {[%clk 00:00:08]} {[%emt 00:00:04]} 47. g6
{[%clk 00:00:08]} {[%emt 00:00:09]} Rxf6 {[%clk 00:00:08]} {[%emt 00:00:02]} 48.
g7 {[%clk 00:00:08]} Rg6 {[%clk 00:00:07]} {[%emt 00:00:03]} 49. Rg4 {[%clk
00:00:08]} Rxg7 {[%clk 00:00:07]} {[%emt 00:00:03]} 50. Rxg7 {[%clk 00:00:08]}
b2 {[%clk 00:00:07]} 51. Kh2 {[%clk 00:00:06]} {[%emt 00:00:05]} b1=Q {[%clk
00:00:07]} 52. Nf4 {[%clk 00:00:06]} {[%emt 00:00:02]} Qf1 {[%clk 00:00:07]}
{[%emt 00:00:02]} 53. Rf7 {[%clk 00:00:05]} {[%emt 00:00:05]} Qf2 {[%clk
00:00:07]} {[%emt 00:00:03]} 54. Kh1 {[%clk 00:00:05]} {[%emt 00:00:01]} Ne4
{[%clk 00:00:07]} {[%emt 00:00:01]} 0-1